[Event "Titled Tuesday Blitz November 22 Early 2022"]
[White "Cramling Bellon, Anna"]
[Black "Sariego Figueredo, Wilfredo"]
[WhiteFideId "32009232"]
[BlackFideId "3500080"]
[WhiteElo "1972"]
[BlackElo "2309"]
[Result "1-0"]
[Round "09"]
[TimeControl "180+1"]
[Date "2022.11.23"]
[WhiteClock "0:00:01"]
[BlackClock "0:00:22"]

1. d4 {[%clk 0:02:58]}  d5 {[%clk 0:02:59]} 2. c4 {[%clk 0:02:54]}  c6 {[%clk 0:02:59]} 3. Nf3 {[%clk 0:02:53]}  Nf6 {[%clk 0:02:59]} 4. Nc3 {[%clk 0:02:53]}  a6 {[%clk 0:02:59]} 5. c5 {[%clk 0:02:52]}  Bf5 {[%clk 0:02:53]} 6. Bf4 {[%clk 0:02:52]}  e6 {[%clk 0:02:51]} 7. e3 {[%clk 0:02:48]}  Be7 {[%clk 0:02:50]} 8. Bd3 {[%clk 0:02:45]}  Bg6 {[%clk 0:02:50]} 9. b4 {[%clk 0:02:41]}  Nbd7 {[%clk 0:02:47]} 10. O-O {[%clk 0:02:41]}  O-O {[%clk 0:02:46]} 11. a4 {[%clk 0:02:41]}  Re8 {[%clk 0:02:37]} 12. b5 {[%clk 0:02:39]}  axb5 {[%clk 0:02:35]} 13. Bxg6 {[%clk 0:02:38]}  hxg6 {[%clk 0:02:33]} 14. axb5 {[%clk 0:02:38]}  Nh5 {[%clk 0:02:16]} 15. bxc6 {[%clk 0:02:30]}  bxc6 {[%clk 0:02:14]} 16. Ra4 {[%clk 0:02:14]}  Rxa4 {[%clk 0:02:11]} 17. Qxa4 {[%clk 0:02:15]}  Nxf4 {[%clk 0:02:10]} 18. exf4 {[%clk 0:02:13]}  Qc7 {[%clk 0:02:10]} 19. Ne5 {[%clk 0:02:07]}  Nxe5 {[%clk 0:02:08]} 20. fxe5 {[%clk 0:02:07]}  f6 {[%clk 0:02:00]} 21. f4 {[%clk 0:02:03]}  Rb8 {[%clk 0:01:54]} 22. Ra1 {[%clk 0:01:52]}  Kf7 {[%clk 0:01:51]} 23. h3 {[%clk 0:01:33]}  g5 {[%clk 0:01:44]} 24. fxg5 {[%clk 0:01:20]}  fxe5 {[%clk 0:01:43]} 25. g6+ {[%clk 0:01:08]}  Kxg6 {[%clk 0:01:34]} 26. Qc2+ {[%clk 0:01:02]}  e4 {[%clk 0:01:31]} 27. Qe2 {[%clk 0:00:55]}  Bf6 {[%clk 0:01:24]} 28. Qg4+ {[%clk 0:00:41]}  Kf7 {[%clk 0:01:24]} 29. Ne2 {[%clk 0:00:30]}  Rb2 {[%clk 0:01:18]} 30. Nf4 {[%clk 0:00:19]}  Bxd4+ {[%clk 0:00:47]} 31. Kh1 {[%clk 0:00:19]}  Qe5 {[%clk 0:00:42]} 32. Qg6+ {[%clk 0:00:17]}  Ke7 {[%clk 0:00:35]} 33. Ra7+ {[%clk 0:00:16]}  Kd8 {[%clk 0:00:31]} 34. Nxe6+ {[%clk 0:00:11]}  Qxe6 {[%clk 0:00:20]} 35. Qxe6 {[%clk 0:00:03]}  Rb1+ {[%clk 0:00:21]} 36. Kh2 {[%clk 0:00:03]}  Bg1+ {[%clk 0:00:21]} 37. Kh1 {[%clk 0:00:02]}  Rb3 {[%clk 0:00:22]} 38. Qg8# {[%clk 0:00:01]} 1-0


[Site "https://www.chess.com"]

[Event "Titled Tuesday Blitz November 22 Early 2022"]
[White "Csonka, Balazs"]
[Black "Stijve, Theo"]
[WhiteFideId "742910"]
[BlackFideId "1331132"]
[WhiteElo "2404"]
[BlackElo "2256"]
[Result "1-0"]
[Round "09"]
[TimeControl "180+1"]
[Date "2022.11.23"]
[WhiteClock "0:00:14"]
[BlackClock "0:00:19"]

1. e4 {[%clk 0:03:00]}  c5 {[%clk 0:02:59]} 2. Nf3 {[%clk 0:03:00]}  a6 {[%clk 0:02:59]} 3. g3 {[%clk 0:02:41]}  b5 {[%clk 0:02:57]} 4. d4 {[%clk 0:02:40]}  cxd4 {[%clk 0:02:55]} 5. Nxd4 {[%clk 0:02:41]}  Bb7 {[%clk 0:02:54]} 6. Bg2 {[%clk 0:02:41]}  e6 {[%clk 0:02:51]} 7. O-O {[%clk 0:02:38]}  Nf6 {[%clk 0:02:51]} 8. Qe2 {[%clk 0:02:31]}  d6 {[%clk 0:02:49]} 9. Rd1 {[%clk 0:02:26]}  Qc7 {[%clk 0:02:46]} 10. a4 {[%clk 0:02:13]}  b4 {[%clk 0:02:39]} 11. c3 {[%clk 0:02:08]}  bxc3 {[%clk 0:02:30]} 12. Nxc3 {[%clk 0:02:07]}  Be7 {[%clk 0:02:29]} 13. Bg5 {[%clk 0:01:46]}  Nbd7 {[%clk 0:02:24]} 14. Rac1 {[%clk 0:01:40]}  Qb8 {[%clk 0:02:12]} 15. Nd5 {[%clk 0:01:08]}  exd5 {[%clk 0:01:28]} 16. exd5 {[%clk 0:01:09]}  O-O {[%clk 0:01:28]} 17. Nc6 {[%clk 0:01:05]}  Bxc6 {[%clk 0:01:14]} 18. dxc6 {[%clk 0:01:06]}  Ne5 {[%clk 0:01:02]} 19. c7 {[%clk 0:00:58]}  Qc8 {[%clk 0:01:00]} 20. Be3 {[%clk 0:00:31]}  d5 {[%clk 0:00:46]} 21. Bd4 {[%clk 0:00:24]}  Ng6 {[%clk 0:00:41]} 22. Bxf6 {[%clk 0:00:23]}  Bxf6 {[%clk 0:00:41]} 23. Bxd5 {[%clk 0:00:23]}  Ra7 {[%clk 0:00:39]} 24. Qc4 {[%clk 0:00:20]}  Be5 {[%clk 0:00:36]} 25. Bxf7+ {[%clk 0:00:20]}  Kh8 {[%clk 0:00:30]} 26. Bxg6 {[%clk 0:00:17]}  hxg6 {[%clk 0:00:22]} 27. Rd8 {[%clk 0:00:13]}  Rxd8 {[%clk 0:00:20]} 28. Qh4+ {[%clk 0:00:14]}  Kg8 {[%clk 0:00:19]} 29. cxd8=Q+ {[%clk 0:00:14]} 1-0


[Site "https://www.chess.com"]

[Event "Titled Tuesday Blitz November 22 Early 2022"]
[White "Deac, Bogdan-Daniel"]
[Black "Durarbayli, Vasif"]
[WhiteFideId "1226380"]
[BlackFideId "13402935"]
[WhiteElo "2648"]
[BlackElo "2586"]
[Result "0-1"]
[Round "09"]
[TimeControl "180+1"]
[Date "2022.11.22"]
[WhiteClock "0:00:06"]
[BlackClock "0:00:09"]

1. d4 {[%clk 0:03:00]}  d5 {[%clk 0:03:00]} 2. Nf3 {[%clk 0:03:01]}  Nf6 {[%clk 0:02:59]} 3. Bf4 {[%clk 0:03:01]}  c5 {[%clk 0:02:56]} 4. e3 {[%clk 0:03:02]}  Nc6 {[%clk 0:02:56]} 5. Nbd2 {[%clk 0:03:02]}  Qb6 {[%clk 0:02:57]} 6. dxc5 {[%clk 0:03:01]}  Qxb2 {[%clk 0:02:57]} 7. Rb1 {[%clk 0:02:44]}  Qc3 {[%clk 0:02:57]} 8. Bb5 {[%clk 0:02:44]}  e6 {[%clk 0:02:55]} 9. O-O {[%clk 0:02:43]}  Be7 {[%clk 0:02:55]} 10. e4 {[%clk 0:02:18]}  O-O {[%clk 0:02:22]} 11. e5 {[%clk 0:02:17]}  Nd7 {[%clk 0:02:22]} 12. Nb3 {[%clk 0:02:17]}  Qb4 {[%clk 0:02:04]} 13. Nbd4 {[%clk 0:02:16]}  Qxc5 {[%clk 0:01:59]} 14. Re1 {[%clk 0:02:17]}  Nxd4 {[%clk 0:01:51]} 15. Nxd4 {[%clk 0:02:14]}  Bd8 {[%clk 0:01:52]} 16. Re3 {[%clk 0:02:02]}  Bb6 {[%clk 0:01:47]} 17. c3 {[%clk 0:01:59]}  Qe7 {[%clk 0:01:46]} 18. Qg4 {[%clk 0:00:49]}  f5 {[%clk 0:01:09]} 19. Qh5 {[%clk 0:00:35]}  Qf7 {[%clk 0:00:48]} 20. Qh4 {[%clk 0:00:30]}  Bd8 {[%clk 0:00:43]} 21. Bg5 {[%clk 0:00:23]}  Bxg5 {[%clk 0:00:31]} 22. Qxg5 {[%clk 0:00:23]}  f4 {[%clk 0:00:25]} 23. Rh3 {[%clk 0:00:20]}  Nc5 {[%clk 0:00:23]} 24. Bd3 {[%clk 0:00:11]}  h6 {[%clk 0:00:19]} 25. Qg4 {[%clk 0:00:07]}  Nxd3 {[%clk 0:00:15]} 26. Rxd3 {[%clk 0:00:08]}  Kh7 {[%clk 0:00:15]} 27. h4 {[%clk 0:00:06]}  Qg6 {[%clk 0:00:13]} 28. Qe2 {[%clk 0:00:05]}  b6 {[%clk 0:00:12]} 29. h5 {[%clk 0:00:05]}  Qe4 {[%clk 0:00:12]} 30. Qd1 {[%clk 0:00:05]}  Qxe5 {[%clk 0:00:07]} 31. Rh3 {[%clk 0:00:05]}  Qf6 {[%clk 0:00:06]} 32. Qc2+ {[%clk 0:00:04]}  Kh8 {[%clk 0:00:07]} 33. Rh1 {[%clk 0:00:01]}  e5 {[%clk 0:00:08]} 34. Nb3 {[%clk 0:00:01]}  Bf5 {[%clk 0:00:08]} 35. Qc1 {[%clk 0:00:02]}  Bxb1 {[%clk 0:00:08]} 36. Qxb1 {[%clk 0:00:03]}  e4 {[%clk 0:00:09]} 37. Rh3 {[%clk 0:00:03]}  f3 {[%clk 0:00:07]} 38. Nd4 {[%clk 0:00:04]}  fxg2 {[%clk 0:00:07]} 39. Qe1 {[%clk 0:00:04]}  Rac8 {[%clk 0:00:08]} 40. Kxg2 {[%clk 0:00:04]}  Rf7 {[%clk 0:00:07]} 41. Rg3 {[%clk 0:00:04]}  Rcf8 {[%clk 0:00:07]} 42. Qe3 {[%clk 0:00:04]}  Qxf2+ {[%clk 0:00:08]} 43. Qxf2 {[%clk 0:00:04]}  Rxf2+ {[%clk 0:00:09]} 44. Kh3 {[%clk 0:00:05]}  Rxa2 {[%clk 0:00:09]} 45. Ne6 {[%clk 0:00:06]}  Rf3 {[%clk 0:00:09]} 0-1


[Site "https://www.chess.com"]

[Event "Titled Tuesday Blitz November 22 Early 2022"]
[White "Diaz Rosas, Julio Cesar"]
[Black "Odinaev, Timur"]
[WhiteFideId "5105099"]
[BlackFideId "4163770"]
[WhiteElo "2246"]
[BlackElo "2306"]
[Result "1-0"]
[Round "09"]
[TimeControl "180+1"]
[Date "2022.11.23"]
[WhiteClock "0:00:56"]
[BlackClock "0:00:13"]

1. e4 {[%clk 0:02:52]}  c5 {[%clk 0:02:59]} 2. Nf3 {[%clk 0:02:52]}  d6 {[%clk 0:02:59]} 3. d4 {[%clk 0:02:52]}  cxd4 {[%clk 0:03:00]} 4. Nxd4 {[%clk 0:02:53]}  Nf6 {[%clk 0:03:00]} 5. Nc3 {[%clk 0:02:53]}  g6 {[%clk 0:03:00]} 6. Be3 {[%clk 0:02:52]}  Bg7 {[%clk 0:03:00]} 7. f3 {[%clk 0:02:52]}  Nc6 {[%clk 0:03:00]} 8. Qd2 {[%clk 0:02:53]}  O-O {[%clk 0:03:00]} 9. O-O-O {[%clk 0:02:53]}  d5 {[%clk 0:03:00]} 10. exd5 {[%clk 0:02:51]}  Nxd5 {[%clk 0:03:00]} 11. Nxc6 {[%clk 0:02:51]}  bxc6 {[%clk 0:03:00]} 12. Bd4 {[%clk 0:02:52]}  e5 {[%clk 0:02:59]} 13. Bc5 {[%clk 0:02:52]}  Be6 {[%clk 0:03:00]} 14. h4 {[%clk 0:02:45]}  h6 {[%clk 0:02:55]} 15. h5 {[%clk 0:02:34]}  g5 {[%clk 0:02:54]} 16. Bc4 {[%clk 0:02:24]}  e4 {[%clk 0:01:49]} 17. Nxe4 {[%clk 0:02:05]}  Re8 {[%clk 0:01:35]} 18. Bd4 {[%clk 0:01:58]}  Nf4 {[%clk 0:01:15]} 19. Bxg7 {[%clk 0:01:52]}  Qxd2+ {[%clk 0:01:11]} 20. Rxd2 {[%clk 0:01:53]}  Kxg7 {[%clk 0:01:10]} 21. Bxe6 {[%clk 0:01:53]}  Rxe6 {[%clk 0:01:08]} 22. c4 {[%clk 0:01:45]}  Rae8 {[%clk 0:01:04]} 23. g4 {[%clk 0:01:43]}  Re5 {[%clk 0:00:59]} 24. Kc2 {[%clk 0:01:40]}  R8e6 {[%clk 0:00:48]} 25. b3 {[%clk 0:01:37]}  f5 {[%clk 0:00:47]} 26. Ng3 {[%clk 0:01:34]}  fxg4 {[%clk 0:00:42]} 27. fxg4 {[%clk 0:01:35]}  Re1 {[%clk 0:00:27]} 28. Nf5+ {[%clk 0:01:31]}  Kf6 {[%clk 0:00:27]} 29. Rxe1 {[%clk 0:01:31]}  Rxe1 {[%clk 0:00:27]} 30. Nxh6 {[%clk 0:01:28]}  c5 {[%clk 0:00:26]} 31. Nf5 {[%clk 0:01:22]}  Ne6 {[%clk 0:00:26]} 32. Rh2 {[%clk 0:01:16]}  Nf8 {[%clk 0:00:18]} 33. Kd2 {[%clk 0:01:11]}  Re4 {[%clk 0:00:17]} 34. Ne3 {[%clk 0:01:10]}  Ke5 {[%clk 0:00:16]} 35. h6 {[%clk 0:01:04]}  Nh7 {[%clk 0:00:16]} 36. Rf2 {[%clk 0:01:04]}  Kd4 {[%clk 0:00:15]} 37. Nc2+ {[%clk 0:01:01]}  Ke5 {[%clk 0:00:15]} 38. Rf5+ {[%clk 0:01:02]}  Ke6 {[%clk 0:00:15]} 39. Ne3 {[%clk 0:01:01]}  Rxg4 {[%clk 0:00:15]} 40. Rxc5 {[%clk 0:01:00]}  Rd4+ {[%clk 0:00:15]} 41. Kc3 {[%clk 0:01:00]}  Re4 {[%clk 0:00:14]} 42. Kd3 {[%clk 0:00:59]}  Re5 {[%clk 0:00:14]} 43. Rc7 {[%clk 0:00:58]}  Nf6 {[%clk 0:00:12]} 44. h7 {[%clk 0:00:58]}  Nxh7 {[%clk 0:00:11]} 45. Rxh7 {[%clk 0:00:59]}  Kf6 {[%clk 0:00:12]} 46. Ng4+ {[%clk 0:00:58]}  Kg6 {[%clk 0:00:12]} 47. Nxe5+ {[%clk 0:00:56]}  Kxh7 {[%clk 0:00:13]} 48. c5 {[%clk 0:00:56]} 1-0


[Site "https://www.chess.com"]

[Event "Titled Tuesday Blitz November 22 Early 2022"]
[White "Fathy, Elameir"]
[Black "Martin, Lewis"]
[WhiteFideId "10600396"]
[BlackFideId "410551"]
[WhiteElo "2311"]
[BlackElo "2145"]
[Result "0-1"]
[Round "09"]
[TimeControl "180+1"]
[Date "2022.11.23"]
[WhiteClock "0:00:06"]
[BlackClock "0:00:14"]

1. d4 {[%clk 0:02:58]}  d5 {[%clk 0:02:59]} 2. c4 {[%clk 0:02:58]}  e6 {[%clk 0:03:00]} 3. Nf3 {[%clk 0:02:58]}  Nf6 {[%clk 0:03:00]} 4. g3 {[%clk 0:02:58]}  c6 {[%clk 0:02:57]} 5. Bg2 {[%clk 0:02:59]}  Nbd7 {[%clk 0:02:57]} 6. O-O {[%clk 0:02:59]}  Be7 {[%clk 0:02:55]} 7. Nbd2 {[%clk 0:02:59]}  O-O {[%clk 0:02:54]} 8. Qc2 {[%clk 0:02:59]}  b6 {[%clk 0:02:46]} 9. e4 {[%clk 0:02:59]}  dxe4 {[%clk 0:02:43]} 10. Nxe4 {[%clk 0:03:00]}  Nxe4 {[%clk 0:02:42]} 11. Qxe4 {[%clk 0:03:01]}  Bb7 {[%clk 0:02:42]} 12. Rd1 {[%clk 0:03:02]}  Qc8 {[%clk 0:02:40]} 13. Qe2 {[%clk 0:02:59]}  Nf6 {[%clk 0:02:36]} 14. Bf4 {[%clk 0:02:57]}  Re8 {[%clk 0:02:34]} 15. Bh3 {[%clk 0:02:56]}  Ba6 {[%clk 0:02:08]} 16. Rac1 {[%clk 0:02:48]}  Qb7 {[%clk 0:02:07]} 17. Bg2 {[%clk 0:02:46]}  Rad8 {[%clk 0:02:05]} 18. Ne5 {[%clk 0:02:42]}  Nd5 {[%clk 0:01:57]} 19. Qf3 {[%clk 0:02:15]}  Nxf4 {[%clk 0:01:53]} 20. Qxf4 {[%clk 0:02:16]}  Bf6 {[%clk 0:01:46]} 21. Nxc6 {[%clk 0:02:01]}  Rc8 {[%clk 0:01:35]} 22. Nb4 {[%clk 0:01:58]}  Qd7 {[%clk 0:01:31]} 23. Nxa6 {[%clk 0:01:55]}  Qa4 {[%clk 0:01:32]} 24. Nc7 {[%clk 0:01:52]}  Red8 {[%clk 0:01:31]} 25. a3 {[%clk 0:01:43]}  Rd7 {[%clk 0:01:22]} 26. Nb5 {[%clk 0:01:43]}  Rxc4 {[%clk 0:01:21]} 27. Rxc4 {[%clk 0:01:34]}  Qxc4 {[%clk 0:01:19]} 28. Nc3 {[%clk 0:01:29]}  h6 {[%clk 0:01:13]} 29. Bf1 {[%clk 0:01:24]}  Qb3 {[%clk 0:01:11]} 30. Qe4 {[%clk 0:01:06]}  Qxb2 {[%clk 0:01:07]} 31. Rd3 {[%clk 0:00:58]}  g6 {[%clk 0:00:55]} 32. a4 {[%clk 0:00:49]}  Kg7 {[%clk 0:00:49]} 33. h4 {[%clk 0:00:47]}  a6 {[%clk 0:00:43]} 34. Ne2 {[%clk 0:00:43]}  b5 {[%clk 0:00:40]} 35. axb5 {[%clk 0:00:41]}  axb5 {[%clk 0:00:41]} 36. h5 {[%clk 0:00:38]}  b4 {[%clk 0:00:37]} 37. hxg6 {[%clk 0:00:38]}  fxg6 {[%clk 0:00:37]} 38. Qxe6 {[%clk 0:00:30]}  Re7 {[%clk 0:00:37]} 39. Qb3 {[%clk 0:00:23]}  Rxe2 {[%clk 0:00:31]} 40. Bxe2 {[%clk 0:00:24]}  Qxe2 {[%clk 0:00:31]} 41. Rf3 {[%clk 0:00:22]}  Qe7 {[%clk 0:00:19]} 42. Kg2 {[%clk 0:00:21]}  Bxd4 {[%clk 0:00:19]} 43. Qc4 {[%clk 0:00:16]}  Bc3 {[%clk 0:00:19]} 44. Re3 {[%clk 0:00:16]}  Qf7 {[%clk 0:00:18]} 45. Qe2 {[%clk 0:00:13]}  Qf6 {[%clk 0:00:17]} 46. Re7+ {[%clk 0:00:13]}  Kf8 {[%clk 0:00:16]} 47. Ra7 {[%clk 0:00:07]}  Bd4 {[%clk 0:00:15]} 48. Ra8+ {[%clk 0:00:07]}  Kg7 {[%clk 0:00:15]} 49. Qe8 {[%clk 0:00:06]}  Qxf2+ {[%clk 0:00:14]} 50. Kh3 {[%clk 0:00:06]}  Qf1+ {[%clk 0:00:14]} 51. Kg4 {[%clk 0:00:05]}  Qf5+ {[%clk 0:00:14]} 52. Kh4 {[%clk 0:00:06]}  Qh5# {[%clk 0:00:14]} 0-1


[Site "https://www.chess.com"]

[Event "Titled Tuesday Blitz November 22 Early 2022"]
[White "Garmash, Aliona"]
[Black "Ferreira, Vitor Hugo Vieira"]
[WhiteFideId "34127620"]
[BlackFideId "2119765"]
[WhiteElo "1958"]
[BlackElo "2168"]
[Result "1-0"]
[Round "09"]
[TimeControl "180+1"]
[Date "2022.11.23"]
[WhiteClock "0:00:06"]
[BlackClock "0:00:12"]

1. d4 {[%clk 0:03:00]}  d5 {[%clk 0:02:59]} 2. Nf3 {[%clk 0:03:00]}  Nf6 {[%clk 0:02:59]} 3. c4 {[%clk 0:03:00]}  dxc4 {[%clk 0:02:59]} 4. e3 {[%clk 0:02:59]}  a6 {[%clk 0:02:59]} 5. Bxc4 {[%clk 0:02:59]}  b5 {[%clk 0:03:00]} 6. Be2 {[%clk 0:02:54]}  e6 {[%clk 0:02:59]} 7. O-O {[%clk 0:02:54]}  c5 {[%clk 0:03:00]} 8. a4 {[%clk 0:02:50]}  b4 {[%clk 0:02:59]} 9. Nbd2 {[%clk 0:02:42]}  Be7 {[%clk 0:02:52]} 10. Nb3 {[%clk 0:02:41]}  cxd4 {[%clk 0:02:51]} 11. exd4 {[%clk 0:02:33]}  O-O {[%clk 0:02:50]} 12. Bf4 {[%clk 0:02:24]}  Nd5 {[%clk 0:02:46]} 13. Bg3 {[%clk 0:02:22]}  Bb7 {[%clk 0:02:42]} 14. Rc1 {[%clk 0:02:19]}  Nc6 {[%clk 0:02:41]} 15. Nc5 {[%clk 0:02:12]}  Bxc5 {[%clk 0:02:37]} 16. dxc5 {[%clk 0:01:56]}  Qf6 {[%clk 0:02:36]} 17. Qc2 {[%clk 0:01:41]}  h6 {[%clk 0:02:35]} 18. Rfd1 {[%clk 0:01:39]}  Rac8 {[%clk 0:02:34]} 19. Bd3 {[%clk 0:01:20]}  Nf4 {[%clk 0:02:29]} 20. Bf1 {[%clk 0:01:13]}  e5 {[%clk 0:02:22]} 21. Rd7 {[%clk 0:01:04]}  Ba8 {[%clk 0:02:19]} 22. Bxa6 {[%clk 0:01:01]}  Rce8 {[%clk 0:02:11]} 23. Bf1 {[%clk 0:00:54]}  e4 {[%clk 0:02:04]} 24. Ne1 {[%clk 0:00:40]}  e3 {[%clk 0:01:52]} 25. fxe3 {[%clk 0:00:36]}  Rxe3 {[%clk 0:01:52]} 26. Qf2 {[%clk 0:00:35]}  Re4 {[%clk 0:01:44]} 27. Nd3 {[%clk 0:00:31]}  Nxd3 {[%clk 0:01:43]} 28. Qxf6 {[%clk 0:00:30]}  gxf6 {[%clk 0:01:41]} 29. Bxd3 {[%clk 0:00:30]}  Re3 {[%clk 0:01:39]} 30. Bb5 {[%clk 0:00:25]}  Na5 {[%clk 0:01:33]} 31. Bf4 {[%clk 0:00:19]}  Re6 {[%clk 0:01:27]} 32. Bxh6 {[%clk 0:00:18]}  Rfe8 {[%clk 0:01:25]} 33. h3 {[%clk 0:00:16]}  Re2 {[%clk 0:01:13]} 34. Bxe2 {[%clk 0:00:15]}  Rxe2 {[%clk 0:01:14]} 35. Rd8+ {[%clk 0:00:11]}  Kh7 {[%clk 0:01:15]} 36. Rxa8 {[%clk 0:00:11]}  Nb3 {[%clk 0:01:15]} 37. Rf1 {[%clk 0:00:10]}  Kxh6 {[%clk 0:01:15]} 38. Rxf6+ {[%clk 0:00:10]}  Kg7 {[%clk 0:01:15]} 39. Rf2 {[%clk 0:00:10]}  Re1+ {[%clk 0:01:13]} 40. Rf1 {[%clk 0:00:09]}  Nxc5 {[%clk 0:01:14]} 41. Rxe1 {[%clk 0:00:09]}  Nd3 {[%clk 0:01:14]} 42. Re3 {[%clk 0:00:09]}  Nf4 {[%clk 0:00:03]} 43. Rg3+ {[%clk 0:00:09]}  Kf6 {[%clk 0:00:04]} 44. a5 {[%clk 0:00:09]}  Ne2+ {[%clk 0:00:05]} 45. Kh2 {[%clk 0:00:07]}  Nxg3 {[%clk 0:00:05]} 46. Kxg3 {[%clk 0:00:07]}  b3 {[%clk 0:00:06]} 47. a6 {[%clk 0:00:07]}  Ke7 {[%clk 0:00:07]} 48. a7 {[%clk 0:00:07]}  Kd6 {[%clk 0:00:08]} 49. Rb8 {[%clk 0:00:08]}  Kc5 {[%clk 0:00:09]} 50. a8=Q {[%clk 0:00:08]}  Kd4 {[%clk 0:00:10]} 51. Qa4+ {[%clk 0:00:07]}  Kd3 {[%clk 0:00:11]} 52. Rd8+ {[%clk 0:00:07]}  Kc2 {[%clk 0:00:12]} 53. Qc4+ {[%clk 0:00:06]}  Kb1 {[%clk 0:00:13]} 54. Rd1+ {[%clk 0:00:06]}  Ka2 {[%clk 0:00:12]} 55. Qa4+ {[%clk 0:00:05]}  Kxb2 {[%clk 0:00:12]} 56. Qa1+ {[%clk 0:00:05]}  Kc2 {[%clk 0:00:12]} 57. Qc1# {[%clk 0:00:06]} 1-0


[Site "https://www.chess.com"]

[Event "Titled Tuesday Blitz November 22 Early 2022"]
[White "Garv Gaur"]
[Black "Ostrovskiy, Aleksandr"]
[WhiteFideId "45030839"]
[BlackFideId "2034239"]
[WhiteElo "1960"]
[BlackElo "2340"]
[Result "0-1"]
[Round "09"]
[TimeControl "180+1"]
[Date "2022.11.23"]
[WhiteClock "0:00:02"]
[BlackClock "0:00:06"]

1. d4 {[%clk 0:02:52]}  Nf6 {[%clk 0:02:59]} 2. Nf3 {[%clk 0:02:52]}  c5 {[%clk 0:02:56]} 3. d5 {[%clk 0:02:11]}  g6 {[%clk 0:02:56]} 4. c4 {[%clk 0:02:11]}  Bg7 {[%clk 0:02:56]} 5. g3 {[%clk 0:02:11]}  O-O {[%clk 0:02:56]} 6. Bg2 {[%clk 0:02:11]}  d6 {[%clk 0:02:56]} 7. O-O {[%clk 0:02:12]}  Na6 {[%clk 0:02:52]} 8. Nc3 {[%clk 0:02:11]}  Nc7 {[%clk 0:02:52]} 9. h3 {[%clk 0:02:09]}  Bd7 {[%clk 0:02:51]} 10. e3 {[%clk 0:02:09]}  b5 {[%clk 0:02:50]} 11. cxb5 {[%clk 0:02:03]}  Nxb5 {[%clk 0:02:50]} 12. Bd2 {[%clk 0:02:03]}  Rb8 {[%clk 0:02:45]} 13. Re1 {[%clk 0:01:56]}  Qb6 {[%clk 0:02:13]} 14. e4 {[%clk 0:01:26]}  Nd4 {[%clk 0:02:04]} 15. b3 {[%clk 0:01:25]}  Nxf3+ {[%clk 0:01:57]} 16. Bxf3 {[%clk 0:01:25]}  Bxh3 {[%clk 0:01:49]} 17. g4 {[%clk 0:01:16]}  h5 {[%clk 0:01:36]} 18. gxh5 {[%clk 0:01:16]}  Bd7 {[%clk 0:00:59]} 19. h6 {[%clk 0:01:02]}  Bh8 {[%clk 0:00:59]} 20. Qc2 {[%clk 0:01:01]}  Ng4 {[%clk 0:00:51]} 21. Kg2 {[%clk 0:00:55]}  Kh7 {[%clk 0:00:45]} 22. Rh1 {[%clk 0:00:52]}  Ne5 {[%clk 0:00:40]} 23. Be2 {[%clk 0:00:52]}  f5 {[%clk 0:00:34]} 24. Rag1 {[%clk 0:00:44]}  f4 {[%clk 0:00:31]} 25. f3 {[%clk 0:00:42]}  c4 {[%clk 0:00:25]} 26. bxc4 {[%clk 0:00:36]}  Rbc8 {[%clk 0:00:25]} 27. Rb1 {[%clk 0:00:36]}  Qd4 {[%clk 0:00:20]} 28. Rb7 {[%clk 0:00:20]}  g5 {[%clk 0:00:17]} 29. Rd1 {[%clk 0:00:18]}  g4 {[%clk 0:00:15]} 30. Bxf4 {[%clk 0:00:14]}  gxf3+ {[%clk 0:00:12]} 31. Bxf3 {[%clk 0:00:15]}  Rg8+ {[%clk 0:00:07]} 32. Kh2 {[%clk 0:00:13]}  Qxc4 {[%clk 0:00:07]} 33. Rxd7 {[%clk 0:00:11]}  Nxd7 {[%clk 0:00:06]} 34. e5+ {[%clk 0:00:12]}  Rg6 {[%clk 0:00:06]} 35. Be4 {[%clk 0:00:12]}  Nxe5 {[%clk 0:00:05]} 36. Bxg6+ {[%clk 0:00:11]}  Nxg6 {[%clk 0:00:05]} 37. Bg3 {[%clk 0:00:11]}  Qxc3 {[%clk 0:00:05]} 38. Qf5 {[%clk 0:00:12]}  Qc2+ {[%clk 0:00:05]} 39. Qxc2 {[%clk 0:00:11]}  Rxc2+ {[%clk 0:00:06]} 40. Kh3 {[%clk 0:00:11]}  Be5 {[%clk 0:00:06]} 41. Be1 {[%clk 0:00:08]}  Rxa2 {[%clk 0:00:05]} 42. Kg4 {[%clk 0:00:08]}  Kxh6 {[%clk 0:00:05]} 43. Kf5 {[%clk 0:00:09]}  Nf8 {[%clk 0:00:03]} 44. Bd2+ {[%clk 0:00:09]}  Kg7 {[%clk 0:00:03]} 45. Rg1+ {[%clk 0:00:07]}  Kf7 {[%clk 0:00:03]} 46. Bh6 {[%clk 0:00:06]}  Rf2+ {[%clk 0:00:03]} 47. Ke4 {[%clk 0:00:07]}  Rh2 {[%clk 0:00:03]} 48. Bg5 {[%clk 0:00:06]}  Bf6 {[%clk 0:00:04]} 49. Bf4 {[%clk 0:00:05]}  Re2+ {[%clk 0:00:04]} 50. Kf5 {[%clk 0:00:06]}  Ra2 {[%clk 0:00:05]} 51. Rh1 {[%clk 0:00:06]}  Ra5 {[%clk 0:00:05]} 52. Ke4 {[%clk 0:00:06]}  Ra4+ {[%clk 0:00:05]} 53. Kf5 {[%clk 0:00:06]}  a5 {[%clk 0:00:06]} 54. Rb1 {[%clk 0:00:04]}  Rb4 {[%clk 0:00:06]} 55. Rc1 {[%clk 0:00:03]}  Ng6 {[%clk 0:00:06]} 56. Rh1 {[%clk 0:00:02]}  Rxf4# {[%clk 0:00:06]} 0-1


[Site "https://www.chess.com"]

[Event "Titled Tuesday Blitz November 22 Early 2022"]
[White "Gheorghiu, Calin"]
[Black "Stefanova, Antoaneta"]
[WhiteFideId "1200305"]
[BlackFideId "2902257"]
[WhiteElo "2225"]
[BlackElo "2426"]
[Result "1-0"]
[Round "09"]
[TimeControl "180+1"]
[Date "2022.11.23"]
[WhiteClock "0:00:37"]
[BlackClock "0:00:18"]

1. d4 {[%clk 0:03:00]}  g6 {[%clk 0:02:58]} 2. e4 {[%clk 0:02:59]}  Bg7 {[%clk 0:02:57]} 3. Nc3 {[%clk 0:02:59]}  a6 {[%clk 0:02:56]} 4. f4 {[%clk 0:02:57]}  b5 {[%clk 0:02:56]} 5. Nf3 {[%clk 0:02:58]}  Bb7 {[%clk 0:02:55]} 6. Bd3 {[%clk 0:02:57]}  e6 {[%clk 0:02:54]} 7. f5 {[%clk 0:02:36]}  gxf5 {[%clk 0:02:47]} 8. exf5 {[%clk 0:02:35]}  Nc6 {[%clk 0:02:24]} 9. Bg5 {[%clk 0:02:17]}  Bf6 {[%clk 0:02:23]} 10. Ne4 {[%clk 0:02:03]}  Bxg5 {[%clk 0:02:17]} 11. Nfxg5 {[%clk 0:02:03]}  Nf6 {[%clk 0:01:36]} 12. O-O {[%clk 0:01:45]}  e5 {[%clk 0:01:23]} 13. d5 {[%clk 0:01:13]}  Nb4 {[%clk 0:01:18]} 14. d6 {[%clk 0:01:06]}  Nxd3 {[%clk 0:00:47]} 15. Qxd3 {[%clk 0:01:01]}  Nxe4 {[%clk 0:00:43]} 16. Nxe4 {[%clk 0:00:59]}  Bxe4 {[%clk 0:00:40]} 17. Qxe4 {[%clk 0:00:57]}  cxd6 {[%clk 0:00:40]} 18. f6 {[%clk 0:00:56]}  Qb6+ {[%clk 0:00:33]} 19. Kh1 {[%clk 0:00:56]}  Qc6 {[%clk 0:00:28]} 20. Qe2 {[%clk 0:00:46]}  O-O-O {[%clk 0:00:19]} 21. Rf3 {[%clk 0:00:39]}  Rhg8 {[%clk 0:00:19]} 22. Rc3 {[%clk 0:00:38]}  Kb7 {[%clk 0:00:18]} 23. Rxc6 {[%clk 0:00:36]}  dxc6 {[%clk 0:00:18]} 24. Rd1 {[%clk 0:00:37]} 1-0


[Site "https://www.chess.com"]